fUSD/lending_fUSD_20250207
["ID","MTS","AMOUNT","RATE_DAILY","PERIOD"]
[352111081,1738951848905,-1090.63,0.00016438,2]
[352111082,1738951848915,-500.0,0.00016438,2]
[352111083,1738951848925,-500.0,0.00016438,2]
[352111084,1738951848934,-548.45,0.00016438,2]
[352111085,1738951848944,-500.0,0.00016438,2]
[352111086,1738951848954,-500.0,0.00016438,2]
[352111087,1738951848963,-791.78,0.00016438,2]
[352111088,1738951848973,-500.0,0.00016438,2]
[352111089,1738951848983,-500.0,0.00016438,2]
[352111090,1738951848994,-500.0,0.00016438,2]
[352111091,1738951849004,-3583.55,0.00016438,2]
[352111092,1738951849014,-500.0,0.00016438,2]
[352111093,1738951849023,-797.81,0.00016438,2]
[352111095,1738951849034,-500.0,0.00016438,2]
[352111097,1738951849048,-2386.39,0.00016438,2]
[352111099,1738951849059,-500.0,0.00016438,2]
[352111101,1738951849069,-1084.76,0.00016438,2]
[352111103,1738951849081,-500.0,0.00016438,2]
[352111105,1738951849091,-605.61,0.00016438,2]
[352111107,1738951849101,-500.0,0.00016438,2]
[352111109,1738951849113,-500.0,0.00016438,2]
[352111111,1738951849124,-2925.6,0.00016438,2]
[352111113,1738951849136,-2572.53,0.00016438,2]
[352111115,1738951849147,-500.0,0.00016438,2]
[352111117,1738951849157,-2718.68,0.00016438,2]
[352111119,1738951849167,-2494.75,0.00016438,2]
[352111121,1738951849177,-777.31,0.00016438,2]
[352111123,1738951849188,-591.99,0.00016438,2]
[352111125,1738951849198,-500.0,0.00016438,2]
[352111127,1738951849209,-500.0,0.00016438,2]
[352111129,1738951849219,-500.0,0.00016438,2]
[352111131,1738951849230,-500.0,0.00016438,2]
[352111133,1738951849243,-500.0,0.00016438,2]
[352111135,1738951849254,-500.0,0.00016438,2]
[352111137,1738951849264,-500.0,0.00016438,2]
[352111139,1738951849274,-500.0,0.00016438,2]
[352111141,1738951849285,-500.0,0.00016438,2]
[352111143,1738951849295,-3474.78,0.00016438,2]
[352111145,1738951849309,-2093.88,0.00016438,2]
[352111147,1738951849321,-1682.33,0.00016438,2]
[352111149,1738951849332,-500.0,0.00016438,2]
[352111151,1738951849342,-705.22,0.00016438,2]
[352111153,1738951849352,-500.0,0.00016438,2]
[352111155,1738951849363,-1960.15,0.00016438,2]
[352111157,1738951849375,-2649.26,0.00016438,2]
[352111159,1738951849386,-500.0,0.00016438,2]
[352111161,1738951849397,-500.0,0.00016438,2]
[352111163,1738951849407,-500.0,0.00016438,2]
[352111165,1738951849418,-1552.4,0.00016438,2]
[352111167,1738951849429,-2290.68,0.00016438,2]
[352111169,1738951849439,-500.0,0.00016438,2]
[352111171,1738951849450,-2894.26,0.00016438,2]
[352111173,1738951849461,-500.0,0.00016438,2]
[352111175,1738951849472,-1065.76,0.00016438,2]
[352111177,1738951849482,-500.0,0.00016438,2]
[352111179,1738951849496,-2180.18,0.00016438,2]
[352111181,1738951849507,-680.59,0.00016438,2]
[352111183,1738951849517,-500.0,0.00016438,2]
[352111185,1738951849528,-1522.57,0.00016438,2]
[352111187,1738951849538,-500.0,0.00016438,2]
[352111189,1738951849549,-500.0,0.00016438,2]
[352111191,1738951849559,-500.0,0.00016438,2]
[352111193,1738951849569,-500.0,0.00016438,2]
[352111195,1738951849579,-500.0,0.00016438,2]
[352111197,1738951849589,-500.0,0.00016438,2]
[352111199,1738951849598,-2044.36,0.00016438,2]
[352111201,1738951849608,-500.0,0.00016438,2]
[352111203,1738951849618,-500.0,0.00016438,2]
[352111205,1738951849628,-2598.18,0.00016438,2]
[352111207,1738951849638,-500.0,0.00016438,2]
[352111209,1738951849648,-500.0,0.00016438,2]
[352111211,1738951849658,-1380.83,0.00016438,2]
[352111213,1738951849668,-500.0,0.00016438,2]
[352111215,1738951849678,-5733.44,0.00016438,2]
[352111217,1738951849691,-500.0,0.00016438,2]
[352111218,1738951849701,-937.34,0.00016438,2]
[352111220,1738951849710,-500.0,0.00016438,2]
[352111223,1738951849720,-500.0,0.00016438,2]
[352111225,1738951849730,-500.0,0.00016438,2]
[352111227,1738951849741,-500.0,0.00016438,2]
[352111228,1738951849751,-500.0,0.00016438,2]
[352111230,1738951849761,-500.0,0.00016438,2]
[352111232,1738951849771,-967.59,0.00016438,2]
[352111234,1738951849780,-1665.2,0.00016438,2]
[352111236,1738951849789,-500.0,0.00016438,2]
[352111238,1738951849798,-3632.08,0.00016438,2]
[352111240,1738951849807,-500.0,0.00016438,2]
[352111242,1738951849816,-500.0,0.00016438,2]
[352111244,1738951849826,-1606.99,0.00016438,2]
[352111246,1738951849835,-1689.0,0.00016438,2]
[352111248,1738951849844,-2031.88,0.00016438,2]
[352111250,1738951849854,-500.0,0.00016438,2]
[352111252,1738951849863,-500.0,0.00016438,2]
[352111266,1738951849982,-500.0,0.00016438,2]
[352111268,1738951849994,-1441.06,0.00016438,2]
[352111270,1738951850004,-500.0,0.00016438,2]
[352111272,1738951850013,-1602.57,0.00016438,2]
[352111274,1738951850023,-1845.31,0.00016438,2]
[352111276,1738951850036,-1102.12,0.00016438,2]
[352111279,1738951850047,-3973.83,0.00016438,2]
[352111280,1738951850057,-500.0,0.00016438,2]
[352111282,1738951850067,-1422.2,0.00016438,2]
[352111285,1738951850077,-500.0,0.00016438,2]
[352111287,1738951850087,-500.0,0.00016438,2]
[352111289,1738951850096,-500.0,0.00016438,2]
[352111291,1738951850106,-1098.32,0.00016438,2]
[352111293,1738951850116,-2989.15,0.00016438,2]
[352111295,1738951850126,-500.0,0.00016438,2]
[352111297,1738951850135,-1468.98,0.00016438,2]
[352111299,1738951850145,-1780.62,0.00016438,2]
[352111300,1738951850154,-500.0,0.00016438,2]
[352111302,1738951850163,-500.0,0.00016438,2]
[352111304,1738951850173,-486.55538972,0.00016438,2]
[352111306,1738951850183,-1938.33,0.00016438,2]
[352111308,1738951850193,-500.0,0.00016438,2]
[352111311,1738951850204,-2487.02,0.00016438,2]
[352111313,1738951850213,-528.32,0.00016438,2]
[352111315,1738951850223,-3873.99,0.00016438,2]
[352111317,1738951850233,-572.87343702,0.00016438,2]
[352111319,1738951850246,-500.0,0.00016438,2]
[352111321,1738951850256,-500.0,0.00016438,2]
[352111323,1738951850265,-3663.64,0.00016438,2]
[352111324,1738951850276,-3758.84,0.00016438,2]
[352111326,1738951850286,-500.0,0.00016438,2]
[352111328,1738951850297,-612.16,0.00016438,2]
[352111330,1738951850307,-1050.78,0.00016438,2]
[352111332,1738951850317,-500.0,0.00016438,2]
[352111334,1738951850328,-500.0,0.00016438,2]
[352111336,1738951850338,-804.51,0.00016438,2]
[352111339,1738951850350,-500.0,0.00016438,2]
[352111341,1738951850360,-500.0,0.00016438,2]
[352111343,1738951850371,-4615.18,0.00016438,2]
[352111345,1738951850380,-1307.98,0.00016438,2]
[352111347,1738951850390,-505.41136474,0.00016438,2]
[352111349,1738951850399,-500.0,0.00016438,2]
[352111351,1738951850409,-500.0,0.00016438,2]
[352111353,1738951850418,-500.0,0.00016438,2]
[352111355,1738951850428,-500.0,0.00016438,2]
[352111357,1738951850437,-500.0,0.00016438,2]
[352111359,1738951850446,-500.0,0.00016438,2]
[352111361,1738951850455,-500.0,0.00016438,2]
[352111363,1738951850464,-500.0,0.00016438,2]
[352111365,1738951850473,-500.0,0.00016438,2]
[352111367,1738951850483,-500.0,0.00016438,2]
[352111368,1738951850495,-500.0,0.00016438,2]
[352111370,1738951850505,-500.0,0.00016438,2]
[352111372,1738951850515,-500.0,0.00016438,2]
[352111374,1738951850524,-500.0,0.00016438,2]
[352111376,1738951850534,-1010.18,0.00016438,2]
[352111378,1738951850543,-1789.39,0.00016438,2]
[352111380,1738951850553,-961.37,0.00016438,2]
[352111382,1738951850563,-500.0,0.00016438,2]
[352111385,1738951850573,-2489.37,0.00016438,2]
[352111387,1738951850582,-1324.84,0.00016438,2]
[352111389,1738951850592,-500.0,0.00016438,2]
[352111391,1738951850602,-1413.29,0.00016438,2]
[352111393,1738951850611,-500.0,0.00016438,2]
[352111394,1738951850621,-500.0,0.00016438,2]
[352111396,1738951850630,-754.17,0.00016438,2]
[352111399,1738951850640,-500.0,0.00016438,2]
[352111401,1738951850650,-1557.08,0.00016438,2]
[352111403,1738951850660,-500.0,0.00016438,2]
[352111405,1738951850670,-511.02800395,0.00016438,2]
[352111406,1738951850680,-3543.36,0.00016438,2]
[352111408,1738951850690,-500.0,0.00016438,2]
[352111411,1738951850699,-500.0,0.00016438,2]
[352111412,1738951850708,-595.285055,0.00016438,2]
[352111415,1738951850718,-500.0,0.00016438,2]
[352111417,1738951850727,-500.0,0.00016438,2]
[352111419,1738951850739,-500.0,0.00016438,2]
[352111420,1738951850748,-1000.56135859,0.00016438,2]
[352111422,1738951850757,-2944.42,0.00016438,2]
[352111424,1738951850767,-500.0,0.00016438,2]
[352111427,1738951850777,-1785.31,0.00016438,2]
[352111429,1738951850787,-500.0,0.00016438,2]
[352111431,1738951850796,-501.03893941,0.00016438,2]
[352111433,1738951850806,-500.0,0.00016438,2]
[352111435,1738951850815,-500.0,0.00016438,2]
[352111437,1738951850824,-394.52532973,0.00016438,2]
[352111439,1738951850833,-368.88,0.00016438,2]
[352111440,1738951850842,-324.42725831,0.0001644,2]
[352111442,1738951850852,-324.42725831,0.0001644,2]
[352111444,1738951850861,-324.42725831,0.0001644,2]
[352111446,1738951850871,-324.42725831,0.0001644,2]
[352111449,1738951850881,-324.42725831,0.0001644,2]
[352111450,1738951850891,-324.42725831,0.0001644,2]
[352111453,1738951850901,-324.42725831,0.0001644,2]
[352111454,1738951850910,-324.42725831,0.0001644,2]
[352111457,1738951850920,-324.42725831,0.0001644,2]
[352111458,1738951850929,-324.42725831,0.0001644,2]
[352111460,1738951850939,-324.42725831,0.0001644,2]
[352111463,1738951850949,-324.42725831,0.0001644,2]
[352111464,1738951850958,-324.42725831,0.0001644,2]
[352111467,1738951850967,-324.42725831,0.0001644,2]
[352111469,1738951850977,-324.42725831,0.0001644,2]
[352111471,1738951850987,-324.42725831,0.0001644,2]
[352111473,1738951850997,-324.42725831,0.0001644,2]
[352111475,1738951851008,-324.42725831,0.0001644,2]
[352111476,1738951851018,-324.42725831,0.0001644,2]
[352111478,1738951851027,-324.42,0.0001644,2]
[352111480,1738951851038,-324.49260294,0.0001644,2]
[352111482,1738951851050,-324.49260294,0.0001644,2]
[352111484,1738951851059,-324.49260294,0.0001644,2]
[352111486,1738951851068,-324.49260294,0.0001644,2]
[352111488,1738951851078,-324.49260294,0.0001644,2]
[352111490,1738951851090,-324.49260294,0.0001644,2]
[352111492,1738951851099,-324.49260294,0.0001644,2]
[352111494,1738951851109,-324.49260294,0.0001644,2]
[352111496,1738951851119,-324.49260294,0.0001644,2]
[352111498,1738951851129,-324.49260294,0.0001644,2]
[352111500,1738951851139,-324.49260294,0.0001644,2]
[352111502,1738951851148,-324.49260294,0.0001644,2]
[352111504,1738951851158,-324.49260294,0.0001644,2]
[352111506,1738951851168,-324.49260294,0.0001644,2]
[352111508,1738951851178,-324.49260294,0.0001644,2]
[352111510,1738951851188,-324.49260294,0.0001644,2]
[352111512,1738951851198,-324.49260294,0.0001644,2]
[352111514,1738951851209,-324.49260294,0.0001644,2]
[352111516,1738951851218,-324.49260294,0.0001644,2]
[352111518,1738951851227,-324.49,0.0001644,2]
[352111520,1738951851236,-178.34246589,0.0001644,2]
[352111522,1738951851247,-178.34246589,0.0001644,2]
[352111524,1738951851258,-178.34246589,0.0001644,2]
[352111526,1738951851267,-178.34246589,0.0001644,2]
[352111528,1738951851277,-178.34246589,0.0001644,2]
[352111531,1738951851287,-178.34246589,0.0001644,2]
[352111532,1738951851297,-178.34246589,0.0001644,2]
[352111534,1738951851306,-178.34246589,0.0001644,2]
[352111536,1738951851315,-178.34246589,0.0001644,2]
[352111538,1738951851325,-178.34246589,0.0001644,2]
[352111540,1738951851334,-178.34246589,0.0001644,2]
[352111542,1738951851343,-178.34246589,0.0001644,2]
[352111544,1738951851353,-178.34246589,0.0001644,2]
[352111546,1738951851362,-178.34246589,0.0001644,2]
[352111548,1738951851371,-178.34246589,0.0001644,2]
[352111551,1738951851382,-178.34246589,0.0001644,2]
[352111553,1738951851392,-178.34246589,0.0001644,2]
[352111555,1738951851401,-178.34246589,0.0001644,2]
[352111556,1738951851411,-178.34246589,0.0001644,2]
[352111559,1738951851420,-178.34,0.0001644,2]
[352111561,1738951851429,-3571.4950886,0.00016454,10]
[352111562,1738951851439,-573.88,0.00016466,2]
[352111564,1738951851448,-502.08687245,0.00016473,2]
[352111567,1738951851458,-152.60198391,0.00016473,2]
[352111568,1738951851467,-150.0,0.00016477,2]
[352111570,1738951851476,-150.0,0.00016478,2]
[352111572,1738951851485,-5996.59,0.0001648,3]
[352111574,1738951851496,-150.0,0.00016481,2]
[352111576,1738951851505,-150.0,0.00016486,2]
[352111578,1738951851514,-150.0,0.00016488,2]
[352111580,1738951851523,-623.7467417,0.00016489,2]
[352111582,1738951851532,-2027.9792221,0.00016489,2]
[352111584,1738951851541,-4282087.708264,0.00016492,2]
[352111586,1738951851551,-150.0,0.00016494,2]
[352111588,1738951851560,-150.0,0.00016497,2]
[352111590,1738951851569,-150.0,0.00016497,2]
[352111592,1738951851579,-2000.0,0.00016499,2]
[352111594,1738951851588,-2000.0,0.00016499,2]
[352111596,1738951851597,-2000.0,0.00016499,2]
[352111598,1738951851607,-2000.0,0.00016499,2]
[352111600,1738951851617,-2000.0,0.00016499,2]
[352111602,1738951851626,-500.0,0.00016499,2]
[352111604,1738951851635,-230.3509657,0.00016499,2]
[352111606,1738951851644,-500.0,0.00016499,2]
[352111608,1738951851653,-500.0,0.00016499,2]
[352111610,1738951851663,-500.0,0.00016499,2]
[352111612,1738951851672,-500.0,0.00016499,2]
[352111614,1738951851681,-472.922,0.00016499,2]
[352111616,1738951851690,-500.0,0.00016499,2]
[352111629,1738951851800,-316.09702582,0.00016499,2]
[352111631,1738951851810,-574.5,0.00016499,2]
[352111633,1738951851820,-1000.0,0.00016499,2]
[352111635,1738951851829,-523.36604226,0.00016499,2]
[352111638,1738951851839,-999.0,0.00016499,2]
[352111640,1738951851849,-500.0,0.00016499,2]
[352111641,1738951851858,-500.0,0.00016499,2]
[352111644,1738951851868,-593.20296969,0.00016499,2]
[352111645,1738951851877,-300.0,0.00016499,2]
[352111648,1738951851886,-300.0,0.00016499,2]
[352111650,1738951851895,-579.41043979,0.000165,2]
[352111652,1738951851904,-1481271.26055327,0.000165,3]
[352111654,1738951851914,-1090465.26320488,0.000165,5]
[352111688,1738951852369,-489.88782,0.00016438,2]
[352111691,1738951852398,-269.08000002,0.000144,2]
[352111692,1738951852409,-323.23633998,0.000144,2]
[352111693,1738951852419,-10.11218,0.00016438,2]
[352111694,1738951852428,-500.0,0.00016438,2]
[352111695,1738951852437,-327.73768501,0.00016438,2]
[352111703,1738951852755,-165.16231499,0.00016438,2]
[352111704,1738951852764,-500.0,0.00016438,2]
[352111705,1738951852773,-500.0,0.00016438,2]
[352111706,1738951852782,-500.0,0.00016438,2]
[352111707,1738951852791,-500.0,0.00016438,2]
[352111708,1738951852801,-274.11268501,0.000165,5]
[352111709,1738951852812,-5104.03899999,0.000165,5]
[352111737,1738951853595,-500.0,0.00016438,2]
[352111740,1738951853606,-500.0,0.00016438,2]
[352111742,1738951853617,-500.0,0.00016438,2]
[352111744,1738951853627,-500.0,0.00016438,2]
[352111745,1738951853636,-976.58498708,0.000165,5]
[352111746,1738951853649,-3238.10123317,0.000165,5]
[352111747,1738951853661,-4889.76,0.000165,5]
[352111748,1738951897897,-1000.0,0.00020027,120]
[352111749,1738951898526,-1000.0,0.00020055,120]
[352111750,1738951899584,-1000.0,0.00020082,120]
[352111751,1738951900071,-300.0,0.0002011,120]
[352111752,1738951900721,-700.0,0.0002011,120]
[352111753,1738951901185,-150.0,0.00020114,120]
[352111754,1738951901210,-850.0,0.00020137,120]
[352111755,1738951901666,-150.0,0.00020137,120]
[352111756,1738951901690,-850.0,0.00020164,120]
[352111757,1738951902287,-150.0,0.00020164,120]
[352111758,1738951902313,-850.0,0.00020192,120]
[352111759,1738951920894,511.1197,8.699e-05,2]
[352111760,1738951927238,1000.0,8.851e-05,2]
[352111761,1738951957455,332.6383,8.836e-05,2]
[352111762,1738952335761,-300.0,8.698e-05,2]
[352111763,1738952335783,-266.5305,8.699e-05,2]
[352111764,1738952335805,-8265.9771,8.699e-05,2]
[352111765,1738952335826,-1167.4924,8.699e-05,2]
[352111766,1738952337699,-128.8923,8.699e-05,2]
[352111767,1738952337721,-3719.34466857,8.699e-05,2]
[352111768,1738952337743,-6151.76303143,8.836e-05,2]
[352111769,1738952347728,-5838.32696857,8.836e-05,2]
[352111770,1738952347750,-1125.67303143,8.836e-05,2]
[352111771,1738952388504,-6964.0,8.836e-05,2]
[352111772,1738952389713,-5262.04656857,8.836e-05,2]
[352111773,1738952389736,-1701.95343143,8.836e-05,2]
[352111774,1738952405851,-5419.88376857,8.836e-05,2]
[352111776,1738952632999,500.0,0.000132,30]
[352111777,1738952761664,300.0,0.0002011,120]
[352111779,1738952783967,623.15813284,0.00020055,120]
[352111799,1738953032177,-300.0,9.5e-05,3]
[352111801,1738953032187,-500.0,9.569e-05,2]
[352111803,1738953032196,-199.992,9.6e-05,3]
[352111805,1738953032239,-500.008,9.6e-05,3]
[352111806,1738953032248,-731.51830741,9.7e-05,3]
[352111807,1738953032259,-368.48169259,9.7e-05,3]
[352111808,1738953032268,-1500.0,9.8e-05,3]
[352111809,1738953032277,-180.45539977,9.8e-05,2]
[352111810,1738953032286,-739.33,9.867e-05,2]
[352111811,1738953032295,-300.0,9.899e-05,2]
[352111812,1738953032304,-3206.49136285,9.9e-05,2]
[352111813,1738953032331,-15.89451946,9.9e-05,2]
[352111814,1738953032340,-1377.86636307,9.9e-05,3]
[352111815,1738953032357,-522.13363693,9.9e-05,3]
[352111816,1738953032366,-11800.594636,9.973e-05,2]
[352111817,1738953032472,-27817.405364,9.973e-05,2]
[352111818,1738953032482,-502.08687245,9.973e-05,2]
[352111819,1738953032491,-500.0,9.973e-05,2]
[352111820,1738953032501,-152.60198391,9.973e-05,2]
[352111821,1738953032511,-1000.0,9.994e-05,2]
[352111822,1738953032521,-150.0,9.998e-05,2]
[352111823,1738953032656,-500.0,9.999e-05,2]
[352111824,1738953032665,-500.0,9.999e-05,2]
[352111825,1738953032674,-190.37459668,9.999e-05,2]
[352111826,1738953032683,-500.0,9.999e-05,2]
[352111827,1738953032692,-500.0,9.999e-05,2]
[352111828,1738953032701,-500.0,9.999e-05,2]
[352111829,1738953032710,-500.0,9.999e-05,2]
[352111830,1738953032719,-500.0,9.999e-05,2]
[352111831,1738953032728,-500.0,9.999e-05,2]
[352111832,1738953032737,-500.0,9.999e-05,2]
[352111833,1738953032748,-500.0,9.999e-05,2]
[352111834,1738953032757,-500.0,9.999e-05,2]
[352111836,1738953032766,-500.0,9.999e-05,2]
[352111838,1738953032775,-500.0,9.999e-05,2]
[352111839,1738953032784,-500.0,9.999e-05,2]
[352111840,1738953032793,-500.0,9.999e-05,2]
[352111841,1738953032803,-500.0,9.999e-05,2]
[352111842,1738953032812,-500.0,9.999e-05,2]
[352111844,1738953032821,-500.0,9.999e-05,2]
[352111845,1738953032830,-500.0,9.999e-05,2]
[352111847,1738953032839,-500.0,9.999e-05,2]
[352111849,1738953032848,-172.70716768,9.999e-05,2]
[352111850,1738953032857,-500.0,9.999e-05,2]
[352111851,1738953032866,-500.0,9.999e-05,2]
[352111852,1738953032875,-1027.47604164,0.0001,2]
[352111853,1738953033303,-1066.9634,0.0001,2]
[352111854,1738953033314,-4263.18475063,0.0001,2]
[352111860,1738953038045,-5000.0957014,0.0001,2]
[352111861,1738953038063,-6305.36144738,0.0001,2]
[352111862,1738953038109,-3931.016471,0.0001,2]
[352111863,1738953038120,-20968.2119877,0.0001,2]
[352111864,1738953038132,-21100.0,0.0001,2]
[352111865,1738953038143,-1063.00136618,0.0001,2]
[352111866,1738953038153,-5475.42017329,0.0001,2]
[352111867,1738953038164,-150582.34154378,0.0001,2]
[352111868,1738953038184,-763.50334123,0.0001,2]
[352111869,1738953038195,-964.63217687,0.0001,2]
[352111870,1738953038206,-1438.54061176,0.0001,2]
[352111871,1738953038243,-6775316.04149299,0.0001,2]
[352111872,1738953038252,-300.0,0.0001,3]
[352111873,1738953038261,-283.1814253,0.0001,2]
[352111874,1738953038271,-345.71762543,0.0001,2]
[352111875,1738953038279,-1105.75629369,0.0001,2]
[352111876,1738953038288,-526.17,0.00010005,2]
[352111877,1738953038298,-198.19004103,0.00010136,2]
[352111878,1738953038307,-1127.57,0.00010163,2]
[352111879,1738953038316,-8443.32,0.00010283,2]
[352111880,1738953038326,-1000.0,0.00010521,2]
[352111882,1738953038335,-420.0,0.00010889,2]
[352111884,1738953038345,-490.04,0.00010959,2]
[352111886,1738953038354,-151.47,0.00011,2]
[352111888,1738953038363,-151.47,0.00011,2]
[352111890,1738953038372,-151.47,0.00011,2]
[352111892,1738953038382,-151.47,0.00011,2]
[352111894,1738953038394,-151.47,0.00011,2]
[352111896,1738953038403,-151.47,0.00011,2]
[352111898,1738953038413,-151.47,0.00011,2]
[352111900,1738953038422,-151.47,0.00011,2]
[352111902,1738953038432,-151.47,0.00011,2]
[352111904,1738953038442,-151.47,0.00011,2]
[352111906,1738953038451,-151.47,0.00011,2]
[352111910,1738953038460,-151.47,0.00011,2]
[352111913,1738953038469,-151.47,0.00011,2]
[352111915,1738953038479,-151.47,0.00011,2]
[352111917,1738953038488,-151.47,0.00011,2]
[352111919,1738953038498,-151.47,0.00011,2]
[352111921,1738953038507,-151.47,0.00011,2]
[352111923,1738953038516,-151.47,0.00011,2]
[352111925,1738953038525,-151.47,0.00011,2]
[352111927,1738953038535,-151.47,0.00011,2]
[352111929,1738953038544,-151.47,0.00011,2]
[352111931,1738953038554,-151.47,0.00011,2]
[352111933,1738953038563,-151.47,0.00011,2]
[352111935,1738953038572,-151.47,0.00011,2]
[352111937,1738953038581,-151.47,0.00011,2]
[352111939,1738953038591,-151.47,0.00011,2]
[352111941,1738953038600,-151.47,0.00011,2]
[352111943,1738953038610,-151.47,0.00011,2]
[352111945,1738953038619,-151.47,0.00011,2]
[352111947,1738953038627,-151.47,0.00011,2]
[352111949,1738953038637,-151.47,0.00011,2]
[352111951,1738953038646,-151.47,0.00011,2]
[352111953,1738953038655,-151.47,0.00011,2]
[352111955,1738953038665,-151.47,0.00011,2]
[352111957,1738953038674,-151.47,0.00011,2]
[352111959,1738953038683,-151.47,0.00011,2]
[352111961,1738953038692,-151.47,0.00011,2]
[352111963,1738953038701,-151.47,0.00011,2]
[352111965,1738953038711,-151.47,0.00011,2]
[352111967,1738953038721,-151.47,0.00011,2]
[352111969,1738953038729,-151.47,0.00011,2]
[352111971,1738953038739,-151.47,0.00011,2]
[352111973,1738953038748,-151.47,0.00011,2]
[352111975,1738953038757,-151.47,0.00011,2]
[352111977,1738953038766,-151.47,0.00011,2]
[352111979,1738953038775,-151.47,0.00011,2]
[352111981,1738953038784,-151.47,0.00011,2]
[352111983,1738953038794,-151.47,0.00011,2]
[352111985,1738953038803,-151.47,0.00011,2]
[352111987,1738953038812,-151.47,0.00011,2]
[352111989,1738953038821,-151.47,0.00011,2]
[352111991,1738953038830,-151.47,0.00011,2]
[352111993,1738953038840,-151.47,0.00011,2]
[352111995,1738953038850,-151.47,0.00011,2]
[352111997,1738953038859,-151.47,0.00011,2]
[352111999,1738953038870,-151.47,0.00011,2]
[352112001,1738953038879,-151.47,0.00011,2]
[352112003,1738953038888,-151.47,0.00011,2]
[352112005,1738953038898,-151.47,0.00011,2]
[352112007,1738953038907,-151.47,0.00011,2]
[352112009,1738953038917,-151.47,0.00011,2]
[352112011,1738953038926,-151.47,0.00011,2]
[352112013,1738953038936,-151.47,0.00011,2]
[352112015,1738953038946,-151.47,0.00011,2]
[352112017,1738953038955,-151.47,0.00011,2]
[352112019,1738953038964,-151.47,0.00011,2]
[352112021,1738953038974,-151.47,0.00011,2]
[352112023,1738953038983,-151.47,0.00011,2]
[352112025,1738953038992,-151.47,0.00011,2]
[352112027,1738953039001,-151.47,0.00011,2]
[352112029,1738953039010,-151.47,0.00011,2]
[352112031,1738953039019,-151.47,0.00011,2]
[352112033,1738953039028,-151.47,0.00011,2]
[352112035,1738953039037,-151.47,0.00011,2]
[352112037,1738953039046,-151.47,0.00011,2]
[352112039,1738953039056,-151.47,0.00011,2]
[352112041,1738953039065,-151.47,0.00011,2]
[352112043,1738953039074,-151.47,0.00011,2]
[352112045,1738953039083,-151.47,0.00011,2]
[352112047,1738953039093,-151.47,0.00011,2]
[352112049,1738953039102,-151.47,0.00011,2]
[352112051,1738953039111,-151.47,0.00011,2]
[352112053,1738953039120,-151.47,0.00011,2]
[352112055,1738953039129,-151.47,0.00011,2]
[352112057,1738953039138,-151.47,0.00011,2]
[352112059,1738953039146,-151.47,0.00011,2]
[352112061,1738953039156,-151.47,0.00011,2]
[352112063,1738953039165,-151.47,0.00011,2]
[352112077,1738953039288,-151.47,0.00011,2]
[352112079,1738953039298,-151.47,0.00011,2]
[352112081,1738953039307,-359784.12000592,0.00011099,2]
[352112083,1738953039317,-2000.0,0.00011179,2]
[352112085,1738953039327,-61309.00181831,0.00011267,2]
[352112087,1738953039337,-353.89,0.00011498,2]
[352112089,1738953039347,-353.89,0.00011501,2]
[352112091,1738953039358,-353.89,0.00011504,2]
[352112093,1738953039367,-353.89,0.00011507,2]